fUST/lending_fUST_20240102
["ID","MTS","AMOUNT","RATE_DAILY","PERIOD"]
[309807847,1704157840400,-500.0,0.00041643,7]
[309807848,1704157840409,-500.0,0.00041643,7]
[309807849,1704157840419,-500.0,0.00041643,7]
[309807850,1704157840428,-651.12,0.00041643,7]
[309807851,1704157840437,-547.64127988,0.00041643,7]
[309807852,1704157840446,-24511.65,0.00041643,3]
[309807853,1704157840455,-500.0,0.00041643,7]
[309807854,1704157840465,-497.79372547,0.00041643,7]
[309807855,1704157840474,-500.0,0.00041643,7]
[309807856,1704157840484,-2410.99,0.00041643,7]
[309807857,1704157840495,-572.68,0.00041643,7]
[309807858,1704157840504,-5537.35,0.00041643,7]
[309807859,1704157840513,-3333.35,0.00041643,7]
[309807860,1704157840522,-732.14,0.00041643,7]
[309807861,1704157840531,-230.65121076,0.00041643,7]
[309807862,1704157840541,-500.0,0.00041643,7]
[309807863,1704157840550,-1978.76,0.00041643,7]
[309807864,1704157840560,-531.6,0.00041643,7]
[309807865,1704157840569,-857.24,0.00041643,7]
[309807866,1704157840578,-500.0,0.00041643,7]
[309807867,1704157840588,-1928.02,0.00041643,7]
[309807868,1704157840597,-1929.03,0.0004178,7]
[309807869,1704157840606,-479.58025694,0.0004178,7]
[309807870,1704157840616,-500.0,0.0004178,7]
[309807871,1704157840625,-500.0,0.0004178,7]
[309807872,1704157840634,-500.0,0.0004178,7]
[309807873,1704157840643,-2224.07,0.0004178,7]
[309807874,1704157840653,-500.0,0.0004178,7]
[309807875,1704157840663,-500.0,0.0004178,7]
[309807876,1704157840672,-500.0,0.0004178,7]
[309807877,1704157840681,-651.12,0.0004178,7]
[309807878,1704157840690,-13170.53207944,0.0004178,3]
[309807879,1704157840704,-11341.11792056,0.0004178,3]
[309807880,1704157840713,-500.0,0.0004178,7]
[309807881,1704157840722,-500.0,0.0004178,7]
[309807882,1704157840731,-2410.99,0.0004178,7]
[309807883,1704157840742,-572.68,0.0004178,7]
[309807884,1704157840750,-5537.35,0.0004178,7]
[309807885,1704157840760,-3333.35,0.0004178,7]
[309807886,1704157840769,-732.14,0.0004178,7]
[309807887,1704157840778,-500.0,0.0004178,7]
[309807888,1704157840787,-1978.76,0.0004178,7]
[309807889,1704157840797,-531.6,0.0004178,7]
[309807890,1704157840806,-857.24,0.0004178,7]
[309807891,1704157840815,-500.0,0.0004178,7]
[309807892,1704157840825,-1928.02,0.0004178,7]
[309807893,1704157840834,-553.47340407,0.00041913,4]
[309807894,1704157840844,-439.44726,0.00041913,4]
[309807895,1704157840853,-472.20318288,0.00041914,4]
[309807896,1704157840863,-318.65713117,0.00041914,4]
[309807897,1704157840872,-323.52404535,0.00041915,4]
[309807898,1704157841020,-524.63560134,0.0002522,2]
[309807899,1704157841030,-521.49628956,0.00041095,7]
[309807900,1704157841040,-500.0,0.00041095,7]
[309807901,1704157841050,-1215.7342291,0.00041096,7]
[309807902,1704157841059,-500.0,0.00041232,7]
[309807903,1704157841072,-325.93189908,0.00041369,7]
[309807904,1704157841157,-22.24749664,0.00041915,4]
[309807905,1704157841167,-2093.3098942,0.00041915,4]
[309807906,1704157841181,-315.4,0.00041915,4]
[309807950,1704157844054,-353.68577728,0.00041915,4]
[309807951,1704157844067,-634.35842212,0.00041915,4]
[309807952,1704157844076,-1191.61997407,0.00041916,4]
[309807953,1704157844085,-13127.81582605,0.00041916,2]
[309807954,1704157844096,-391.84155696,0.00041917,7]
[309807992,1704157846427,-469.6903097,0.00041917,7]
[309808036,1704157856885,161.58509592,0.00021,2]
[309808473,1704159013664,1193.47456337,0.00021,2]
[309808650,1704159033435,-432.41780262,0.00031805,4]
[309808652,1704159033445,-179.8501571,0.00031806,4]
[309808654,1704159033455,-555.43029339,0.00031806,2]
[309808669,1704159033549,-285.60477766,0.00031806,4]
[309808671,1704159033559,-1382.2236695,0.00031806,4]
[309808673,1704159033568,-18366.60107475,0.00031806,4]
[309808675,1704159033578,-218.21355464,0.00031807,4]
[309808677,1704159033587,-266.72372798,0.00031807,4]
[309808679,1704159033597,-10654.80886657,0.00031807,2]
[309808681,1704159033606,-399.43796876,0.00031808,2]
[309808683,1704159033616,-175.28496049,0.00031808,4]
[309808685,1704159033627,-169.65757293,0.00031808,4]
[309808687,1704159033641,-1050.09932533,0.00031808,2]
[309808688,1704159033650,-404.00876748,0.00031808,4]
[309808690,1704159033660,-6451.39415871,0.00031808,4]
[309808692,1704159033671,-155.15708495,0.00031808,4]
[309808695,1704159033684,-154.97153117,0.00031808,2]
[309808697,1704159033694,-155.1769177,0.00031808,2]
[309808698,1704159033704,-155.49246852,0.00031808,4]
[309808700,1704159033716,-155.22476366,0.00031808,4]
[309808702,1704159033727,-154.93028915,0.00031808,4]
[309808705,1704159033738,-384.214068,0.00031808,4]
[309808706,1704159033748,-155.46369518,0.00031808,2]
[309808708,1704159033759,-154.90705577,0.00031809,2]
[309808710,1704159033770,-1169.83018745,0.00031809,4]
[309808712,1704159033779,-1393.28260512,0.00031809,4]
[309808714,1704159033790,-154.90705577,0.00031809,4]
[309808716,1704159033800,-907.65519336,0.00031809,4]
[309808719,1704159033814,-368.26786887,0.0003181,4]
[309808721,1704159033823,-704.88468511,0.0003181,4]
[309808723,1704159033833,-2722.30747684,0.0003181,4]
[309808725,1704159033842,-2775.98610378,0.0003181,4]
[309808727,1704159033854,-14067.74982245,0.0003181,4]
[309808729,1704159033865,-315.90146784,0.00031811,4]
[309808731,1704159033875,-19007.2343235,0.00031812,2]
[309808733,1704159033886,-154.90705577,0.00031812,4]
[309808735,1704159033896,-154.90705577,0.00031812,4]
[309808737,1704159033906,-250.0,0.00031814,2]
[309808739,1704159033916,-366.7836926,0.0003281,4]
[309808741,1704159033926,-366.7836926,0.0003281,4]
[309808743,1704159033936,-194.2520832,0.00032828,2]
[309808745,1704159033946,-21231.47320512,0.00032933,2]
[309809087,1704159038150,4171.12065027,0.00021,2]
[309809090,1704159038168,-154.90705577,0.00031804,2]
[309809092,1704159038177,-2729.02561864,0.00031804,4]
[309809094,1704159038186,-2117.1878279,0.00031804,4]
[309809095,1704159038195,-3151.72104731,0.00031805,4]
[309809098,1704159038207,-864.74733209,0.00031805,4]
[309809100,1704159038216,-3668.52679488,0.00032933,2]
[309809102,1704159038225,-162.95475848,0.00033836,2]
[309809104,1704159038234,-2707.8241944,0.00033958,2]
[309809106,1704159038243,-478.564958,0.00033962,2]
[309809108,1704159038253,-1000.0,0.00034,7]
[309809110,1704159038262,-352.31199566,0.00034963,4]
[309809112,1704159038271,-155.33344587,0.00035,4]
[309809114,1704159038280,-1205.53011693,0.00035,7]
[309809115,1704159038290,-478.564958,0.00035219,2]
[309809117,1704159038300,-180.14054089,0.000355,14]
[309809120,1704159038309,-186.76248,0.00035616,120]
[309809121,1704159038319,-314.0,0.00035973,2]
[309809123,1704159038328,-414.91630481,0.00035999,4]
[309809125,1704159038337,-513.36034837,0.00035999,4]
[309809127,1704159038347,-405.0,0.00036,2]
[309809129,1704159038356,-384.97578846,0.00036,2]
[309809132,1704159038365,-25705.16140594,0.00036,4]
[309809135,1704159038387,-250.0,0.00036094,15]
[309809137,1704159038397,-478.564958,0.00036475,2]
[309809139,1704159038407,-799.11174344,0.00036847,2]
[309809141,1704159038416,-700.0,0.00036847,2]
[309809143,1704159038425,-478.564958,0.00037732,2]
[309809144,1704159038435,-746.05732823,0.00038359,2]
[309809147,1704159038448,-6784.46105171,0.00038359,2]
[309809149,1704159038468,-1759.91024705,0.00038359,2]
[309809152,1704159038481,-478.564958,0.00038989,2]
[309809154,1704159038495,-364.0,0.00039288,2]
[309809157,1704159038508,-1033.8467673,0.0003968,2]
[309809159,1704159038523,-350.0,0.00039704,30]
[309809162,1704159038537,-301.24,0.0003978,2]
[309809164,1704159038549,-22021.3934161,0.0004,120]
[309809166,1704159038560,-160.0577097,0.0004,4]
[309809168,1704159038573,-5004.78328255,0.0004,30]
[309809170,1704159038585,-305.01160269,0.00040173,4]
[309809173,1704159038598,-1249.18635015,0.00040583,4]
[309809175,1704159038611,-163.601699,0.00040881,2]
[309809177,1704159038624,-213.544296,0.00040881,2]
[309809180,1704159038636,-678.4698388,0.00040952,4]
[309809182,1704159038649,-584.0544719,0.00040993,4]
[309809184,1704159038660,-293.645103,0.00040993,4]
[309809187,1704159038672,-616.23372987,0.00040993,2]
[309809189,1704159038685,-259.0671917,0.00040993,4]
[309809191,1704159038696,-780.69671155,0.00040993,4]
[309809193,1704159038706,-291.8871704,0.00040993,10]
[309809195,1704159038716,-479.61158315,0.00040993,4]
[309809197,1704159038729,-996.571467,0.00040993,2]
[309809200,1704159038741,-314.63,0.00040994,2]
[309809202,1704159038752,-314.63,0.00040994,2]
[309809203,1704159038763,-314.63,0.00040994,2]
[309809204,1704159038775,-314.63,0.00040994,2]
[309809205,1704159038786,-314.63,0.00040994,2]
[309809206,1704159038799,-314.63,0.00040994,2]
[309809207,1704159038810,-314.63,0.00040994,2]
[309809208,1704159038821,-314.63,0.00040994,2]
[309809209,1704159038834,-314.63,0.00040994,2]
[309809210,1704159038846,-100377.17082752,0.00040995,2]
[309809211,1704159038857,-155.69497247,0.00041092,4]
[309809212,1704159038867,-13001.28032,0.00041093,4]
[309809213,1704159038877,-364.58100194,0.00041093,4]
[309809214,1704159038888,-223.52390362,0.00041093,4]
[309809215,1704159038902,-1192.14975865,0.00041093,4]
[309809216,1704159038915,-4101.39787276,0.00041093,4]
[309809217,1704159038926,-552.52248839,0.00041093,4]
[309809218,1704159038937,-168.04364669,0.00041093,4]
[309809219,1704159038949,-169.28946322,0.00041093,4]
[309809220,1704159038961,-263.45402214,0.00041093,4]
[309809221,1704159038973,-627.28828351,0.00041093,4]
[309809222,1704159038983,-196.14263589,0.00041093,4]
[309809223,1704159038993,-249.81304422,0.00041093,4]
[309809224,1704159039005,-2094.98073876,0.00041093,4]
[309809225,1704159039016,-3890.78792731,0.00041093,4]
[309809226,1704159039028,-226.60657103,0.00041094,4]
[309809227,1704159039039,-23053.90850853,0.00041094,4]
[309809228,1704159039053,-314.63,0.00041094,2]
[309809229,1704159039065,-220.01157787,0.00041095,7]
[309809230,1704159039077,-500.0,0.00041095,7]
[309809231,1704159039089,-500.0,0.00041095,7]
[309809232,1704159039100,-500.0,0.00041095,7]
[309809233,1704159039113,-542.6,0.00041095,7]
[309809234,1704159039124,-500.0,0.00041095,7]
[309809235,1704159039135,-500.0,0.00041095,7]
[309809236,1704159039147,-500.0,0.00041095,7]
[309809237,1704159039157,-500.0,0.00041095,7]
[309809239,1704159039167,-501.1,0.00041095,7]
[309809241,1704159039177,-500.0,0.00041095,7]
[309809242,1704159039187,-959.25,0.00041095,7]
[309809244,1704159039197,-500.0,0.00041095,7]
[309809245,1704159039207,-1847.69,0.00041095,7]
[309809246,1704159039218,-500.0,0.00041095,7]
[309809247,1704159039229,-599.64070611,0.00041095,7]
[309809248,1704159039240,-150.72532228,0.00041095,7]
[309809249,1704159039252,-595.62094996,0.00041095,7]
[309809250,1704159039263,-977.54,0.00041095,7]
[309809251,1704159039275,-500.0,0.00041095,7]
[309809252,1704159039287,-1372.68,0.00041095,7]
[309809253,1704159039299,-1372.68,0.00041095,7]
[309809254,1704159039309,-1372.68,0.00041095,7]
[309809256,1704159039320,-1372.68,0.00041095,7]
[309809258,1704159039330,-1372.68,0.00041095,7]
[309809259,1704159039340,-518.17,0.00041095,7]
[309809260,1704159039350,-511.66674248,0.00041095,7]
[309809262,1704159039362,-233.90698093,0.00041095,7]
[309809263,1704159039372,-516.89915174,0.00041095,7]
[309809266,1704159039383,-500.0,0.00041095,7]
[309809268,1704159039395,-2320.77,0.00041095,7]
[309809270,1704159039406,-500.0,0.00041095,7]
[309809272,1704159039417,-500.0,0.00041095,7]
[309809274,1704159039430,-500.0,0.00041095,7]
[309809275,1704159039441,-213.85482213,0.00041095,7]
[309809276,1704159039453,-422.02683953,0.00041095,7]
[309809277,1704159039464,-510.41341757,0.00041095,7]
[309809278,1704159039474,-500.0,0.00041095,7]
[309809279,1704159039485,-3132.35,0.00041095,7]
[309809281,1704159039496,-500.0,0.00041095,7]
[309809282,1704159039507,-3416.57,0.00041095,7]
[309809283,1704159039518,-375.79508949,0.00041095,7]
[309809284,1704159039529,-783.57,0.00041095,7]
[309809285,1704159039540,-500.0,0.00041095,7]
[309809286,1704159039551,-500.0,0.00041095,7]
[309809287,1704159039562,-514.07894467,0.00041095,7]
[309809288,1704159039574,-500.0,0.00041095,7]
[309809289,1704159039676,-509.39988582,0.00041095,7]
[309809290,1704159039690,-500.0,0.00041095,7]
[309809291,1704159039701,-500.0,0.00041095,7]
[309809292,1704159039710,-24511.65,0.00041095,3]
[309809293,1704159039719,-500.0,0.00041095,7]
[309809294,1704159039728,-500.0,0.00041095,7]
[309809295,1704159039738,-516.71242908,0.00041095,7]
[309809296,1704159039747,-500.0,0.00041095,7]
[309809297,1704159039757,-7473.34,0.00041095,7]
[309809298,1704159039766,-501.83090295,0.00041095,7]
[309809299,1704159039775,-503.49406965,0.00041095,7]
[309809300,1704159039784,-500.0,0.00041095,7]
[309809301,1704159039795,-2168.71,0.00041095,7]
[309809302,1704159039804,-3452.34,0.00041095,7]
[309809303,1704159039814,-506.4131046,0.00041095,7]
[309809304,1704159039824,-500.0,0.00041095,7]
[309809305,1704159039833,-500.0,0.00041095,7]
[309809306,1704159039843,-462.84194486,0.00041095,7]
[309809307,1704159039852,-500.0,0.00041095,7]
[309809308,1704159039862,-559.59243936,0.00041095,7]
[309809309,1704159039871,-500.0,0.00041095,7]
[309809310,1704159039880,-500.0,0.00041095,7]
[309809311,1704159039890,-512.00198525,0.00041095,7]
[309809312,1704159039899,-7779.12033688,0.00041095,14]
[309809313,1704159039908,-500.0,0.00041095,7]
[309809314,1704159039918,-500.0,0.00041095,7]
[309809315,1704159039927,-383.85885119,0.00041095,7]
[309809316,1704159039936,-2088.23,0.00041095,7]
[309809317,1704159039946,-500.0,0.00041095,7]
[309809318,1704159039956,-500.43542592,0.00041095,7]
[309809320,1704159039965,-530.96,0.00041095,7]
[309809322,1704159039975,-281.117831,0.00041095,7]
[309809324,1704159039985,-500.0,0.00041095,7]
[309809326,1704159039994,-240.67710296,0.00041095,7]
[309809329,1704159040003,-595.71,0.00041095,7]
[309809331,1704159040012,-501.5399354,0.00041095,7]
[309809333,1704159040022,-506.5144382,0.00041095,7]
[309809335,1704159040031,-501.42593656,0.00041095,7]
[309809338,1704159040042,-502.86564975,0.00041095,7]
[309809341,1704159040052,-500.0,0.00041095,7]
[309809344,1704159040061,-500.0,0.00041095,7]
[309809347,1704159040071,-500.0,0.00041095,7]
[309809349,1704159040080,-500.0,0.00041095,7]
[309809351,1704159040089,-516.2646714,0.00041095,7]
[309809353,1704159040098,-565.05226477,0.00041095,7]
[309809355,1704159040107,-638.38719756,0.00041095,7]
[309809357,1704159040118,-500.0,0.00041095,7]
[309809359,1704159040127,-500.0,0.00041095,7]
[309809361,1704159040136,-150.0,0.00041102,7]
[309809363,1704159040145,-150.0,0.00041112,7]
[309809365,1704159040155,-150.0,0.00041122,7]
[309809367,1704159040164,-1372.68,0.00041129,7]
[309809368,1704159040173,-1372.68,0.00041131,7]
[309809370,1704159040182,-1372.68,0.00041131,7]
[309809372,1704159040192,-1372.68,0.00041231,7]
[309809374,1704159040201,-1372.68,0.00041231,7]
[309809375,1704159040212,-168.43551829,0.00041232,3]
[309809377,1704159040221,-500.0,0.00041232,7]
[309809379,1704159040231,-500.0,0.00041232,7]
[309809380,1704159040241,-542.6,0.00041232,7]
[309809381,1704159040250,-500.0,0.00041232,7]
[309809382,1704159040259,-327.2937778,0.00041232,7]
[309809383,1704159040268,-500.0,0.00041232,7]
[309809384,1704159040277,-500.0,0.00041232,7]
[309809385,1704159040286,-501.1,0.00041232,7]
[309809386,1704159040296,-500.0,0.00041232,7]
[309809387,1704159040306,-959.25,0.00041232,7]
[309809388,1704159040315,-500.0,0.00041232,7]
[309809389,1704159040325,-1847.69,0.00041232,7]
[309809390,1704159040335,-500.0,0.00041232,7]
[309809391,1704159040344,-977.54,0.00041232,7]
[309809392,1704159040353,-500.0,0.00041232,7]
[309809393,1704159040362,-500.0,0.00041232,7]
[309809394,1704159040371,-2320.77,0.00041232,7]
[309809395,1704159040380,-403.48574478,0.00041232,7]
[309809397,1704159040390,-500.0,0.00041232,7]
[309809399,1704159040399,-505.18808205,0.00041232,7]
[309809401,1704159040409,-3132.35,0.00041232,7]
[309809403,1704159040419,-3416.57,0.00041232,7]
[309809405,1704159040428,-783.57,0.00041232,7]
[309809407,1704159040438,-500.0,0.00041232,7]
[309809409,1704159040449,-500.0,0.00041232,7]
[309809411,1704159040459,-526.7657092,0.00041232,7]
[309809413,1704159040469,-500.0,0.00041232,7]
[309809416,1704159040479,-500.0,0.00041232,7]
[309809418,1704159040490,-24511.65,0.00041232,3]
[309809419,1704159040499,-312.23522694,0.00041232,7]
[309809421,1704159040508,-500.0,0.00041232,7]
[309809423,1704159040517,-501.76810516,0.00041232,7]
[309809425,1704159040526,-7473.34,0.00041232,7]
[309809427,1704159040536,-500.0,0.00041232,7]
[309809429,1704159040545,-2168.71,0.00041232,7]
[309809431,1704159040554,-3452.34,0.00041232,7]
[309809433,1704159040564,-500.0,0.00041232,7]
[309809435,1704159040573,-500.0,0.00041232,7]
[309809437,1704159040583,-500.0,0.00041232,7]
[309809439,1704159040592,-500.0,0.00041232,7]
[309809441,1704159040602,-500.0,0.00041232,7]
[309809443,1704159040611,-500.0,0.00041232,7]
[309809445,1704159040621,-500.0,0.00041232,7]
[309809447,1704159040630,-2088.23,0.00041232,7]
[309809449,1704159040640,-500.0,0.00041232,7]
[309809451,1704159040649,-530.96,0.00041232,7]
[309809453,1704159040658,-500.0,0.00041232,7]
[309809455,1704159040668,-595.71,0.00041232,7]
[309809457,1704159040677,-500.0,0.00041232,7]
[309809459,1704159040687,-500.0,0.00041232,7]
[309809461,1704159040695,-503.95710297,0.00041232,7]
[309809463,1704159040704,-500.0,0.00041232,7]
[309809465,1704159040714,-5000.0,0.00041279,15]
[309809467,1704159040723,-1372.68,0.00041368,7]
[309809469,1704159040733,-250.0,0.00041368,10]
[309809471,1704159040744,-500.0,0.00041369,7]
[309809473,1704159040753,-542.6,0.00041369,7]
[309809475,1704159040762,-500.0,0.00041369,7]
[309809477,1704159040772,-500.0,0.00041369,7]
[309809479,1704159040783,-230.65121076,0.00041369,7]
[309809481,1704159040793,-501.1,0.00041369,7]
[309809483,1704159040802,-500.0,0.00041369,7]
[309809485,1704159040812,-959.25,0.00041369,7]
[309809487,1704159040822,-500.0,0.00041369,7]
[309809489,1704159040831,-1847.69,0.00041369,7]
[309809491,1704159040840,-500.0,0.00041369,7]
[309809493,1704159040850,-977.54,0.00041369,7]
[309809495,1704159040859,-500.0,0.00041369,7]
[309809497,1704159040869,-154.40627766,0.00041369,7]
[309809499,1704159040878,-2320.77,0.00041369,7]
[309809501,1704159040888,-190.28357266,0.00041369,7]
[309809503,1704159040897,-3132.35,0.00041369,7]
[309809504,1704159040906,-3416.57,0.00041369,7]
[309809506,1704159040916,-783.57,0.00041369,7]
[309809508,1704159040927,-500.0,0.00041369,7]
[309809511,1704159040937,-500.0,0.00041369,7]
[309809513,1704159040947,-500.0,0.00041369,7]
[309809515,1704159040957,-501.22,0.00041369,7]
[309809517,1704159040966,-24511.65,0.00041369,3]
[309809519,1704159040975,-586.06002618,0.00041369,7]
[309809521,1704159040985,-7473.34,0.00041369,7]
[309809522,1704159040994,-500.0,0.00041369,7]
[309809524,1704159041003,-2168.71,0.00041369,7]
[309809526,1704159041012,-3452.34,0.00041369,7]
[309809528,1704159041023,-509.57407601,0.00041369,7]
[309809531,1704159041032,-393.59300149,0.00041369,7]
[309809532,1704159041043,-500.0,0.00041369,7]
[309809534,1704159041052,-500.0,0.00041369,7]
[309809536,1704159041061,-500.0,0.00041369,7]
[309809539,1704159041071,-500.0,0.00041369,7]
[309809541,1704159041081,-500.0,0.00041369,7]
[309809542,1704159041091,-2088.23,0.00041369,7]
[309809544,1704159041101,-500.0,0.00041369,7]
[309809546,1704159041111,-530.96,0.00041369,7]
[309809548,1704159041120,-500.0,0.00041369,7]
[309809550,1704159041129,-595.71,0.00041369,7]
[309809552,1704159041139,-172.41593127,0.00041369,7]
[309809555,1704159041152,-500.0,0.00041369,7]
[309809557,1704159041161,-510.80040643,0.00041369,7]
[309809558,1704159041170,-1372.68,0.00041504,7]
[309809560,1704159041180,-1372.68,0.00041505,7]
[309809562,1704159041188,-500.0,0.00041506,7]
[309809564,1704159041197,-542.6,0.00041506,7]
[309809566,1704159041206,-500.0,0.00041506,7]
[309809568,1704159041215,-500.0,0.00041506,7]
[309809570,1704159041224,-501.1,0.00041506,7]
[309809572,1704159041233,-500.0,0.00041506,7]
[309809574,1704159041242,-959.25,0.00041506,7]
[309809576,1704159041251,-500.0,0.00041506,7]
[309809578,1704159041260,-1847.69,0.00041506,7]
[309809580,1704159041269,-500.0,0.00041506,7]
[309809582,1704159041277,-977.54,0.00041506,7]
[309809584,1704159041287,-2320.77,0.00041506,7]
[309809586,1704159041296,-3132.35,0.00041506,7]
[309809588,1704159041305,-3416.57,0.00041506,7]
[309809590,1704159041314,-783.57,0.00041506,7]
[309809592,1704159041324,-500.0,0.00041506,7]
[309809593,1704159041333,-500.0,0.00041506,7]
[309809595,1704159041343,-500.0,0.00041506,7]
[309809596,1704159041352,-24511.65,0.00041506,3]
[309809598,1704159041362,-7473.34,0.00041506,7]
[309809600,1704159041371,-500.0,0.00041506,7]
[309809602,1704159041380,-2168.71,0.00041506,7]
[309809604,1704159041390,-3452.34,0.00041506,7]
[309809606,1704159041400,-500.0,0.00041506,7]
[309809608,1704159041410,-412.33022692,0.00041506,7]
[309809610,1704159041419,-500.0,0.00041506,7]
[309809612,1704159041429,-350.37054139,0.00041506,7]
[309809614,1704159041438,-619.58734193,0.00041506,7]
[309809616,1704159041448,-2088.23,0.00041506,7]
[309809618,1704159041458,-500.0,0.00041506,7]
[309809620,1704159041467,-530.96,0.00041506,7]
[309809621,1704159041476,-500.0,0.00041506,7]
[309809623,1704159041487,-595.71,0.00041506,7]
[309809625,1704159041497,-156.24147642,0.00041506,7]
[309809627,1704159041507,-151.0,0.00041506,7]
[309809629,1704159041516,-553.47340407,0.00041641,4]
[309809631,1704159041527,-1372.68,0.00041642,7]
[309809633,1704159041537,-1372.68,0.00041642,7]
[309809635,1704159041547,-500.0,0.00041643,7]
[309809636,1704159041557,-542.6,0.00041643,7]
[309809638,1704159041566,-500.0,0.00041643,7]
[309809640,1704159041575,-501.1,0.00041643,7]
[309809642,1704159041586,-575.96309197,0.00041643,7]
[309809644,1704159041596,-12.50508757,0.00041643,7]
[309809651,1704159041659,-946.74491243,0.00041643,7]
[309809653,1704159041670,-500.0,0.00041643,7]
[309809655,1704159041679,-1847.69,0.00041643,7]
[309809657,1704159041688,-977.54,0.00041643,7]
[309809659,1704159041697,-2320.77,0.00041643,7]
[309809661,1704159041708,-3132.35,0.00041643,7]
[309809663,1704159041719,-3416.57,0.00041643,7]
[309809665,1704159041728,-783.57,0.00041643,7]
[309809667,1704159041737,-500.0,0.00041643,7]
[309809669,1704159041746,-314.35857318,0.00041643,7]
[309809671,1704159041755,-547.64127988,0.00041643,7]
[309809673,1704159041764,-24511.65,0.00041643,3]
[309809674,1704159041845,-7473.34,0.00041643,7]
[309809675,1704159041854,-497.79372547,0.00041643,7]
[309809676,1704159041864,-2168.71,0.00041643,7]
[309809677,1704159041873,-3452.34,0.00041643,7]
[309809678,1704159041882,-500.0,0.00041643,7]
[309809680,1704159041892,-500.0,0.00041643,7]
[309809682,1704159041901,-2088.23,0.00041643,7]
[309809684,1704159041910,-500.0,0.00041643,7]
[309809685,1704159041920,-530.96,0.00041643,7]
[309809686,1704159041929,-500.0,0.00041643,7]
[309809687,1704159041938,-595.71,0.00041643,7]
[309809688,1704159041948,-161.25,0.0004176,7]
[309809690,1704159041957,-150.0,0.0004177,7]
[309809692,1704159041966,-439.44726,0.00041778,4]
[309809694,1704159041975,-318.65713117,0.00041779,4]
[309809696,1704159041984,-1372.68,0.00041779,7]
[309809698,1704159041993,-165.2144538,0.0004178,7]
[309809700,1704159042002,-542.6,0.0004178,7]
[309809702,1704159042011,-500.0,0.0004178,7]
[309809704,1704159042020,-501.1,0.0004178,7]
[309809706,1704159042029,-959.25,0.0004178,7]
[309809708,1704159042038,-160.9762552,0.0004178,7]
[309809710,1704159042048,-1847.69,0.0004178,7]
[309809712,1704159042056,-977.54,0.0004178,7]
[309809714,1704159042066,-1091.551643,0.0004178,7]
[309809716,1704159042075,-1091.551643,0.0004178,7]
[309809718,1704159042084,-2320.77,0.0004178,7]
[309809720,1704159042093,-3132.35,0.0004178,7]
[309809721,1704159042102,-3416.57,0.0004178,7]
[309809723,1704159042112,-783.57,0.0004178,7]
[309809726,1704159042123,-151.0,0.0004178,7]
[309809727,1704159042134,-19125.61189829,0.0004178,3]
[309809783,1704159042532,18835.64666991,0.00021,2]
[309809792,1704159042578,1145.19458433,0.00021,2]
[309809800,1704159042647,555.40513562,0.00021,2]
[309809846,1704159043020,-500.0,0.00032801,2]
[309809847,1704159043029,-225.77436499,0.00032801,2]
[309809849,1704159043038,-239.80686805,0.00032801,2]
[309809850,1704159043049,-533.52640017,0.00032801,2]
[309809851,1704159043060,-500.0,0.00035999,4]
[309809852,1704159043070,-399.30483116,0.00035999,4]
[309809853,1704159043080,-162.25624387,0.00035999,4]
[309809854,1704159043093,-59.87911925,0.00035999,4]
[309809855,1704159043102,-580.85302591,0.00035999,4]
[309809856,1704159043112,-500.0,0.00035999,7]
[309809857,1704159043122,-275.14480013,0.00035999,7]
[309809858,1704159043131,-409.74,0.0003999,3]
[309809859,1704159043141,-1280.4849718,0.0004,4]
[309809860,1704159043151,-171.13064193,0.00041095,7]